bitfinex/quotes_ETHUSD_20220112
["timestamp","ask_amount","ask_price","bid_price","bid_amount"]
[1641949438419,2.39602504,3237.4,3237.3,1.37674402]
[1641949439122,1.0723694,3237.4,3237.3,1.37674402]
[1641949439321,0.3,3237.4,3237.3,1.37674402]
[1641949439823,1.77237,3237.8,3237.3,1.37674402]
[1641949440021,1.07237,3237.8,3237.3,1.37674402]
[1641949440220,0.77636896,3237.7,3237.3,1.37674402]
[1641949440623,0.00341054,3237.6,3237.3,1.37674402]
[1641949440821,1.31596212,3237.5,3237.3,1.37674402]
[1641949441020,1.61880424,3237.5,3237.3,1.37674402]
[1641949441223,0.00227369,3237.4,3237.3,1.37674402]
[1641949442065,0.00227369,3237.4,3236.9,2.70000321]
[1641949442271,0.00227369,3237.4,3236.9,0.3]
[1641949442468,1.61596212,3237.5,3236.9,0.3]
[1641949442469,0.00170527,3237.3,3236.9,0.3]
[1641949442868,0.00113685,3237.2,3236.9,0.3]
[1641949443071,0.772438,3237.1,3236.9,0.3]
[1641949443270,1.072438,3237.1,3236.9,1.27513792]
[1641949444171,0.3,3237.1,3236.9,1.27513792]
[1641949444573,0.30227369,3237.4,3236.9,1.27513792]
[1641949444776,0.30227369,3237.4,3237.0,3.0512065]
[1641949444973,0.7723433,3237.6,3237.0,3.0512065]
[1641949444974,0.00170527,3237.3,3237.0,3.0512065]
[1641949445476,0.00113685,3237.2,3237.1,5.745]
[1641949445820,0.00113685,3237.2,3237.1,10.10867431]
[1641949446619,0.00113685,3237.2,3237.1,10.18588431]
[1641949449223,0.00113685,3237.2,3237.1,4.88588431]
[1641949450673,3.10113685,3237.2,3237.1,3.64916578]
[1641949451072,3.40113685,3237.2,3237.1,3.64916578]
[1641949451272,3.40113685,3237.2,3237.1,3.57195578]
[1641949456626,3.40113685,3237.2,3237.1,0.445]
[1641949456827,3.40113685,3237.2,3236.9,1.27513792]
[1641949457675,1.17412306,3237.0,3236.9,1.27513792]
[1641949457977,1.47412306,3237.0,3236.9,1.27513792]
[1641949458175,1.47412306,3237.0,3236.6,3.12695578]
[1641949458574,1.47412306,3237.0,3236.7,0.00170527]
[1641949459375,1.47412306,3237.0,3236.7,1.10269585]
[1641949459576,0.3,3237.0,3236.7,1.10269585]
[1641949459776,0.3,3237.0,3236.8,0.00113685]
[1641949460075,3.10113685,3237.2,3236.8,1.00113685]
[1641949460076,3.40113685,3237.2,3236.8,1.00113685]
[1641949460278,3.40113685,3237.2,3236.9,2.78251622]
[1641949460477,3.40113685,3237.2,3236.9,2.85973622]
[1641949460478,3.10113685,3237.2,3236.9,2.85973622]
[1641949460676,3.10113685,3237.2,3237.0,1.0]
[1641949460928,3.10113685,3237.2,3237.1,2.34723497]
[1641949461229,3.10113685,3237.2,3237.0,2.29496543]
[1641949461827,3.40113685,3237.2,3237.0,2.29496543]
[1641949462829,3.40113685,3237.2,3237.0,3.29496543]
[1641949463034,3.40113685,3237.2,3237.1,2.79326547]
[1641949463228,3.40113685,3237.2,3237.1,2.87047547]
[1641949463632,3.40113685,3237.2,3237.1,0.37721]
[1641949463835,3.40113685,3237.2,3237.1,0.07721]
[1641949464233,3.40113685,3237.2,3236.8,0.00113685]
[1641949464670,3.40113685,3237.2,3236.6,2.29044404]
[1641949465274,3.40113685,3237.2,3236.6,3.06285404]
[1641949465471,3.40113685,3237.2,3236.6,3.36285404]
[1641949465673,3.40113685,3237.2,3236.6,2.59044404]
[1641949465870,0.00987246,3237.1,3236.9,1.08933405]
[1641949466272,0.00987246,3237.1,3236.9,1.38933405]
[1641949466472,3.40113685,3237.2,3236.9,1.38933405]
[1641949466672,3.40113685,3237.2,3236.9,2.16172405]
[1641949467678,3.40113685,3237.2,3237.0,2.26267261]
[1641949468078,3.10113685,3237.2,3237.0,3.70767261]
[1641949468330,3.10113685,3237.2,3237.1,2.31895547]
[1641949468518,3.10113685,3237.2,3237.1,2.61895547]
[1641949469821,3.10113685,3237.2,3237.1,4.96895547]
[1641949470018,3.40113685,3237.2,3237.1,4.96895547]
[1641949470425,3.10113685,3237.2,3237.1,5.41395547]
[1641949470623,3.10113685,3237.2,3237.1,7.26333547]
[1641949471425,3.10113685,3237.2,3237.1,9.89668482]
[1641949471626,3.10113685,3237.2,3237.1,8.12451482]
[1641949472071,3.10113685,3237.2,3237.1,9.12451482]
[1641949473676,3.40113685,3237.2,3237.1,5.77451482]
[1641949473876,3.40113685,3237.2,3237.1,0.82221]
[1641949474075,3.40113685,3237.2,3237.1,0.52221]
[1641949474276,3.40113685,3237.2,3237.1,2.79521363]
[1641949475075,3.40113685,3237.2,3237.1,0.52221]
[1641949475276,3.40113685,3237.2,3237.1,2.78297604]
[1641949475832,3.40113685,3237.2,3237.1,3.78297604]
[1641949475833,3.1,3237.2,3237.1,3.78297604]
[1641949476721,3.1,3237.2,3237.1,2.78297604]
[1641949476922,3.1,3237.2,3237.1,3.78297604]
[1641949480672,3.1,3237.2,3237.1,1.52221]
[1641949480871,3.1,3237.2,3237.1,0.52221]
[1641949481074,3.1,3237.2,3237.1,6.43869843]
[1641949481272,3.1,3237.2,3237.1,5.43869843]
[1641949481470,3.1,3237.2,3237.1,3.72802166]
[1641949481673,3.1,3237.2,3237.1,2.72802166]
[1641949482071,3.4,3237.2,3237.1,2.72802166]
[1641949486143,3.4,3237.2,3237.1,5.3614842]
[1641949487969,3.1,3237.2,3237.1,5.3614842]
[1641949488168,3.4,3237.2,3237.1,5.3614842]
[1641949489772,3.1,3237.2,3237.1,5.3614842]
[1641949489972,3.1,3237.2,3237.1,6.3614842]
[1641949490173,3.1,3237.2,3237.1,6.4386942]
[1641949490827,3.4,3237.2,3237.1,2.63346254]
[1641949491629,3.4,3237.2,3237.1,2.38346254]
[1641949491825,3.4,3237.2,3237.0,1.84451]
[1641949495591,0.34596705,3237.1,3237.0,1.84451]
[1641949495895,0.35238773,3237.1,3236.9,0.3]
[1641949496091,0.34596705,3237.1,3236.4,3.6016]
[1641949496289,0.34596705,3237.1,3236.4,0.3]
[1641949496490,0.34596705,3237.1,3236.5,0.00284212]
[1641949496891,1.32013205,3236.8,3236.6,1.24726159]
[1641949497091,1.11848975,3237.1,3236.6,1.54726159]
[1641949497293,0.3,3236.8,3236.7,0.00170527]
[1641949497694,0.34596705,3237.1,3236.7,0.00170527]
[1641949498093,0.64596705,3237.1,3236.7,0.00170527]
[1641949498327,0.34596705,3237.1,3236.7,0.00170527]
[1641949498729,0.34596705,3237.1,3236.7,3.03366182]
[1641949498926,0.34596705,3237.1,3236.9,0.3]
[1641949499526,0.34596705,3237.1,3237.0,2.32925658]
[1641949499728,3.1,3237.2,3237.1,1.51158722]
[1641949499931,3.1,3237.2,3237.1,3.78095509]
[1641949500129,3.1,3237.2,3237.1,4.08095509]
[1641949501333,3.4,3237.2,3237.1,4.08095509]
[1641949502369,3.1,3237.2,3237.1,4.08095509]
[1641949502578,3.1,3237.2,3237.1,6.62542509]
[1641949502772,3.1,3237.2,3237.1,7.07042509]
[1641949503571,3.8094,3237.7,3237.2,5.96356581]
[1641949503773,1.2085,3238.2,3237.4,0.77218]
[1641949503972,4.27878517,3238.3,3238.0,1.13657278]
[1641949503973,1.11018517,3238.3,3238.0,1.13657278]
[1641949504177,1.11018517,3238.3,3238.0,1.43657278]
[1641949504373,0.81288287,3238.1,3238.0,3.79280204]
[1641949504577,0.00625266,3238.1,3238.0,3.86787545]
[1641949508021,0.00625266,3238.1,3238.0,1.43657278]
[1641949510176,0.01429717,3238.1,3238.0,1.43657278]
[1641949510580,0.01429717,3238.1,3238.0,0.3]
[1641949510778,0.01429717,3238.1,3237.5,1.573]
[1641949510979,0.01429717,3238.1,3237.5,2.873]
[1641949511183,0.00568423,3238.0,3237.5,2.873]
[1641949511579,0.00511581,3237.9,3237.8,0.77224]
[1641949511979,0.00511581,3237.9,3237.8,1.07224]
[1641949514045,0.00511581,3237.9,3237.8,3.37099174]
[1641949514851,0.7721973,3238.7,3237.8,3.37099174]
[1641949514852,1.0,3239.3,3237.9,5.35]
[1641949515052,0.123595,3239.7,3239.3,0.02362395]
[1641949515348,0.123595,3239.7,3239.5,0.03916554]
[1641949515545,0.123595,3239.7,3239.6,5.27717]
[1641949515747,0.123595,3239.7,3239.6,5.2]
[1641949515946,0.123595,3239.7,3239.6,0.745]
[1641949515947,0.13382662,3239.7,3239.6,0.745]
[1641949516347,0.13382662,3239.7,3239.6,3.345]
[1641949517578,0.13382662,3239.7,3239.6,5.70169961]
[1641949518978,0.01023162,3239.7,3239.6,5.70169961]
[1641949521126,0.01023162,3239.7,3239.6,0.745]
[1641949521327,0.01023162,3239.7,3239.1,0.84908]
[1641949521328,2.91023162,3239.7,3239.1,0.84908]
[1641949521527,1.01532056,3239.6,3239.1,0.07716]
[1641949521730,1.0096632,3239.6,3239.1,0.07716]
[1641949522027,0.00909477,3239.5,3239.1,0.07716]
[1641949522227,0.00823668,3239.3,3238.6,0.445]
[1641949522427,0.07718,3239.2,3238.6,0.445]
[1641949522630,0.0073895,3239.2,3238.6,0.445]
[1641949522827,0.08399108,3239.1,3238.6,0.445]
[1641949523229,0.00625266,3239.0,3238.6,0.445]
[1641949523431,1.55049883,3238.9,3238.6,0.445]
[1641949523630,1.85618306,3238.9,3238.6,0.445]
[1641949523930,0.00511581,3238.8,3238.6,0.445]
[1641949524330,0.00454739,3238.7,3238.6,0.445]
[1641949528631,1.72787622,3238.9,3238.6,0.445]
[1641949530033,1.72787622,3238.9,3238.6,1.21704]
[1641949535933,1.47332883,3238.9,3238.6,1.21704]
[1641949536532,0.07718,3239.3,3238.6,1.21704]
[1641949536732,0.38078606,3239.4,3238.9,0.77197]
[1641949536932,0.00284211,3239.2,3238.9,0.77197]
[1641949537132,0.00284211,3239.2,3239.0,0.3]
[1641949537334,0.00227369,3239.1,3239.0,0.3]
[1641949537531,0.00227369,3239.1,3238.6,0.445]
[1641949537732,1.37556366,3238.9,3238.7,0.77201]
[1641949537943,2.62337777,3238.9,3238.8,0.3]
[1641949538333,2.62451461,3238.9,3238.6,0.745]
[1641949538732,2.62451461,3238.9,3238.6,0.445]
[1641949538933,2.62451461,3238.9,3238.6,0.745]
[1641949539133,2.62451461,3238.9,3238.6,0.445]
[1641949542882,2.62451461,3238.9,3238.2,1.51712]
[1641949543084,3.48491546,3238.8,3238.2,0.3]
[1641949543355,4.48491546,3238.8,3238.3,0.0022737]
[1641949543541,1.07718,3238.8,3238.3,0.0022737]
[1641949543741,1.07718,3238.8,3237.8,0.00511581]
[1641949543939,1.26759281,3238.2,3237.8,0.00511581]
[1641949544741,1.26759281,3238.2,3237.6,0.00625266]
[1641949545751,1.43681193,3237.7,3237.6,0.00625266]
[1641949545952,1.43681193,3237.7,3237.6,3.10625266]
[1641949546349,0.0772,3238.1,3237.6,3.10625266]
[1641949546749,0.0772,3238.1,3237.7,0.00568424]
[1641949546949,0.0772,3238.1,3237.7,0.30568424]
[1641949547377,0.0772,3238.1,3237.8,0.00511581]
[1641949548178,1.43526084,3237.9,3237.8,0.00511581]
[1641949549784,0.0772,3238.1,3237.8,0.00511581]
[1641949549981,0.0772,3238.2,3237.8,0.00511581]
[1641949550382,0.0772,3238.6,3237.8,0.00511581]
[1641949550844,1.20151622,3238.5,3237.8,0.00511581]
[1641949551042,0.2424,3238.0,3237.8,0.00511581]
[1641949551440,0.2424,3238.0,3237.7,0.772324]
[1641949551640,0.77233,3237.9,3237.8,0.00511581]
[1641949552039,0.77233,3237.9,3237.5,0.00682108]
[1641949552245,1.22614936,3237.8,3237.5,0.00682108]
[1641949553045,1.22614936,3237.8,3237.1,3.97496775]
[1641949553046,1.22614936,3237.8,3237.2,0.00852635]
[1641949553850,1.22614936,3237.8,3237.6,1.5446232]
[1641949554250,1.22614936,3237.8,3237.7,2.30568424]
[1641949554451,0.0772,3238.2,3237.7,2.30568424]
[1641949554682,1.54453,3238.4,3237.7,2.30568424]
[1641949554683,0.0772,3238.3,3237.7,2.30568424]
[1641949554881,0.0772,3238.3,3237.8,0.77735811]
[1641949555084,0.84942,3238.3,3237.8,0.77735811]
[1641949555283,0.84942,3238.3,3237.9,0.00454739]
[1641949555487,1.54453,3238.4,3237.9,0.00454739]
[1641949555488,1.25208889,3238.2,3237.9,2.62098889]
[1641949555884,1.25208889,3238.2,3238.0,0.77608797]
[1641949556387,1.25208889,3238.2,3238.1,0.00341054]
[1641949559629,1.32928889,3238.2,3238.1,0.00341054]
[1641949560829,4.42928889,3238.2,3238.1,0.00341054]
[1641949561028,5.42928889,3238.2,3238.1,0.00341054]
[1641949563681,4.42928889,3238.2,3238.1,0.00341054]
[1641949563879,4.35208889,3238.2,3238.0,0.75402905]
[1641949565479,3.1,3238.2,3238.0,0.75402905]
[1641949566134,3.1,3238.2,3238.0,3.01025356]
[1641949566335,3.1,3238.2,3238.1,2.27340384]
[1641949567238,3.1,3238.2,3238.0,0.75402905]
[1641949569676,3.09891918,3238.2,3238.0,0.75402905]
[1641949576739,3.39891918,3238.2,3238.0,0.75402905]
[1641949580589,4.17118918,3238.2,3238.0,0.75402905]
[1641949581134,3.39891918,3238.2,3238.0,0.75402905]
[1641949581839,3.09891918,3238.2,3238.0,0.75402905]
[1641949584141,1.0,3238.1,3238.0,0.75402905]
[1641949587884,3.17611918,3238.2,3238.0,0.75402905]
[1641949589234,3.09891918,3238.2,3238.1,2.25335526]
[1641949589638,3.09891918,3238.2,3238.1,4.50335526]
[1641949589838,3.09891918,3238.2,3238.1,2.25335526]
[1641949590840,3.09891918,3238.2,3238.1,4.88591238]
[1641949591442,3.09891918,3238.2,3238.1,5.18591238]
[1641949592087,0.0772,3238.9,3238.2,3.05]
[1641949592284,0.07718,3239.1,3238.3,3.82192972]
[1641949592483,0.00227369,3238.5,3238.3,4.12192972]
[1641949592687,1.66771,3239.4,3238.4,6.34015092]
[1641949592882,0.00284212,3239.0,3238.4,6.34015092]
[1641949593284,2.84922428,3239.1,3238.4,8.97270804]
[1641949593285,0.00227369,3238.9,3238.4,8.97270804]
[1641949593686,0.00170527,3238.8,3238.5,1.5440912]
[1641949593885,0.00170527,3238.8,3238.6,2.50178516]
[1641949594087,0.00113685,3238.7,3238.6,2.50178516]
[1641949595835,1.77204,3239.5,3238.6,2.50178516]
[1641949595836,6.51824,3239.7,3238.7,4.35]
[1641949596037,1.0,3239.6,3239.0,1.5438427]
[1641949596235,1.0,3239.6,3238.8,2.49842499]
[1641949596640,0.07718,3239.7,3238.8,2.49842499]
[1641949596838,0.84909,3239.7,3238.9,0.445]
[1641949597037,0.00511581,3239.6,3239.2,2.01031195]
[1641949597244,0.07717,3239.5,3239.2,2.01031195]
[1641949597443,0.08171738,3239.5,3239.3,2.29879507]
[1641949597643,0.00397896,3239.4,3239.3,2.29879507]
[1641949599248,0.00397896,3239.4,3239.2,0.7719419]
[1641949599689,0.00341054,3239.3,3239.2,0.7719419]
[1641949600688,3.10341054,3239.3,3239.2,0.7719419]
[1641949601692,0.00341054,3239.3,3239.2,1.96295785]
[1641949602093,0.00341054,3239.3,3239.2,0.7719419]
[1641949602292,0.00341054,3239.3,3239.1,1.5438837]
[1641949602493,0.00341054,3239.3,3239.1,2.3158217]
[1641949602795,0.00284211,3239.2,3239.1,2.3158217]
[1641949603430,0.00284211,3239.2,3239.1,0.771938]
[1641949609784,0.08001211,3239.2,3239.1,0.771938]
[1641949610837,0.08001211,3239.2,3239.0,0.771939]
[1641949611036,0.07717,3239.1,3239.0,0.771939]
[1641949611240,1.30379471,3240.1,3239.1,0.01359768]
[1641949611436,1.30379471,3240.1,3239.2,0.445]
[1641949611637,0.00284212,3239.7,3239.3,2.84015092]
[1641949611839,0.00284212,3239.7,3239.4,0.445]
[1641949612037,1.30379471,3240.1,3239.4,0.445]
[1641949612038,0.0022737,3239.6,3239.5,0.7717725]
[1641949612237,0.0022737,3239.6,3239.5,3.7167725]
[1641949613440,0.0022737,3239.6,3239.5,5.98917185]
[1641949613638,0.0022737,3239.6,3239.5,3.48917185]
[1641949620844,0.0022737,3239.6,3239.5,1.2167725]
[1641949621048,0.0022737,3239.6,3239.5,3.50675876]
[1641949621348,0.0022737,3239.6,3239.5,4.10675876]
[1641949622107,0.77173,3240.7,3239.6,5.4]
[1641949622297,0.77173,3240.7,3239.7,2.82085494]
[1641949622298,0.67173,3240.7,3239.7,2.82085494]
[1641949622494,1.56267271,3240.4,3240.0,1.48488359]
[1641949622693,0.00568423,3240.6,3240.2,0.771665]
[1641949622895,0.00397896,3240.3,3240.2,0.771665]
[1641949623106,0.00511581,3240.5,3240.2,0.771665]
[1641949623311,0.00397896,3240.3,3240.2,0.771665]
[1641949623493,0.00454739,3240.4,3240.2,0.771665]
[1641949623694,1.16545809,3240.3,3240.2,0.771665]
[1641949625097,1.16545809,3240.3,3240.0,0.7717886]
[1641949625297,1.16545809,3240.3,3239.8,1.2393]
[1641949625497,0.00341054,3240.2,3239.8,1.2393]
[1641949625931,0.00284212,3240.1,3239.8,1.2393]
[1641949626135,0.77468212,3240.1,3239.8,1.2393]
[1641949626337,0.00227369,3240.0,3239.5,1.5436819]
[1641949626836,0.00170527,3239.9,3239.8,0.7718322]
[1641949628640,0.00170527,3239.9,3239.5,1.5436819]
[1641949628840,0.77199,3239.7,3239.3,3.8686]
[1641949629046,0.77199,3239.7,3239.1,1.5438476]
[1641949629240,0.0085657,3239.6,3239.4,0.00113684]
[1641949629591,0.00113685,3239.8,3239.2,0.0022737]
[1641949629592,0.00499023,3239.4,3239.2,0.0022737]
[1641949629784,1.26188138,3239.3,3239.2,0.0022737]
[1641949630387,1.0,3239.7,3239.2,0.0022737]
[1641949630588,0.00113685,3239.8,3239.2,0.0022737]
[1641949631389,2.24921013,3239.8,3239.4,0.7718632]
[1641949632191,3.24921013,3239.8,3239.4,0.7718632]
[1641949633831,2.47733013,3239.8,3239.4,0.7718632]
[1641949634031,1.47733013,3239.8,3239.4,0.7718632]
[1641949635539,0.00113685,3239.8,3239.4,0.7718632]
[1641949635937,0.72299685,3239.9,3239.4,4.1218632]
[1641949636141,0.72299685,3239.9,3239.6,0.7718089]
[1641949638896,1.72299685,3239.9,3239.6,0.7718089]
[1641949639699,0.7719,3239.8,3239.5,0.00170528]
[1641949639899,1.54379,3239.8,3239.5,0.00170528]
[1641949640099,1.54379,3239.8,3239.4,0.0022737]
[1641949640831,1.0,3239.9,3239.5,0.7718619]
[1641949641034,1.18720456,3240.0,3239.5,0.7718619]
[1641949641231,1.18720456,3240.0,3239.6,0.00113685]
[1641949641432,1.77182,3240.1,3239.6,0.00113685]
[1641949641633,0.77182,3240.1,3239.6,0.00113685]
[1641949641835,0.00113684,3240.0,3239.6,0.00113685]
[1641949642036,0.00113684,3240.0,3239.4,1.14504343]
[1641949642538,0.00113684,3240.0,3239.5,0.00170528]
[1641949642736,0.77185,3239.9,3239.7,0.7718102]
[1641949642938,0.00113684,3240.0,3239.7,0.7718102]
[1641949646387,0.00113684,3240.0,3239.9,3.95409649]
[1641949646590,0.00113684,3240.0,3239.9,7.11530156]
[1641949647391,0.00113684,3240.0,3239.9,8.50571284]
[1641949647789,0.00113684,3240.0,3239.9,8.88287284]
[1641949647992,0.00113684,3240.0,3239.9,9.65446284]
[1641949648839,0.00113684,3240.0,3239.9,13.62411303]
[1641949649041,0.00113684,3240.0,3239.9,14.62411303]
[1641949649443,0.9719852,3241.2,3240.0,5.4]
[1641949649642,0.9719852,3241.2,3241.0,1.14636284]
[1641949649844,0.00625266,3241.1,3241.0,1.14636284]
[1641949650043,0.00625266,3241.1,3240.8,0.445]
[1641949650447,0.00568424,3241.0,3240.5,2.89798494]
[1641949650644,0.00568424,3241.0,3240.7,1.5428122]
[1641949650844,0.00511581,3240.9,3240.7,1.5428122]
[1641949651246,0.00454739,3240.8,3240.7,1.5428122]
[1641949651446,0.00454739,3240.8,3240.6,2.34458015]
[1641949651745,0.00397897,3240.7,3240.4,0.445]
[1641949651949,0.00397897,3240.7,3240.2,1.1998]
[1641949652191,0.00341054,3240.6,3240.2,1.1998]
[1641949652397,1.11457809,3240.5,3240.2,1.1998]
[1641949652589,1.11457809,3240.5,3240.1,0.07713]
[1641949652590,1.08864564,3240.4,3240.1,0.07713]
[1641949652791,1.09091934,3240.4,3240.1,0.07713]
[1641949652990,0.00170527,3240.3,3240.1,0.07713]
[1641949653391,0.00113685,3240.2,3240.1,0.07713]
[1641949654594,0.00113685,3240.2,3239.8,5.44543136]
[1641949654998,0.00113685,3240.2,3239.9,0.7717026]
[1641949655193,0.00113685,3240.2,3240.0,2.29395265]
[1641949655394,0.00113685,3240.2,3240.0,4.58216615]
[1641949655595,0.00113685,3240.2,3240.1,7.07085494]
[1641949657046,0.00113685,3240.2,3240.1,7.37085494]
[1641949657652,0.00113685,3240.2,3240.1,7.07085494]
[1641949658449,0.00113685,3240.2,3240.1,8.61378494]
[1641949659249,0.00113685,3240.2,3240.1,8.99092494]
[1641949659691,0.00113685,3240.2,3240.1,8.69092494]
[1641949661891,0.00113685,3240.2,3240.1,9.13592494]
[1641949666239,0.00113685,3240.2,3240.1,10.13592494]
[1641949668286,0.9719852,3241.2,3240.2,5.4]
[1641949668485,0.9719852,3241.2,3240.8,0.7714144]
[1641949668702,0.00511581,3241.1,3240.9,2.37901735]
[1641949669087,0.00454739,3241.0,3240.9,2.37901735]
[1641949669487,0.00454739,3241.0,3240.8,0.7714144]
[1641949669687,0.00454739,3241.0,3240.8,3.08682604]
[1641949669889,0.00397896,3240.9,3240.8,0.7714144]
[1641949670089,0.92596416,3241.2,3240.8,0.7714144]
[1641949670291,0.00511581,3241.1,3240.4,2.7259153]
[1641949670693,0.00511581,3241.1,3240.5,0.00227369]
[1641949671333,0.00511581,3241.1,3240.5,2.28039356]
[1641949671531,0.00511581,3241.1,3240.7,0.7715056]
[1641949672434,0.00511581,3241.1,3240.6,0.00170527]
[1641949672635,0.00511581,3241.1,3240.7,0.7714991]
[1641949674441,0.00511581,3241.1,3240.8,2.29643419]
[1641949674694,0.00511581,3241.1,3240.9,0.7714458]
[1641949678737,0.00511581,3241.1,3241.0,2.33789038]
[1641949680746,0.00511581,3241.1,3240.8,1.5427572]
[1641949680946,0.00511581,3241.1,3240.9,0.3]
[1641949681150,0.00511581,3241.1,3240.8,1.5427572]
[1641949682394,0.00511581,3241.1,3240.6,0.77320997]
[1641949682590,1.47101307,3240.9,3240.6,0.00170527]
[1641949682789,1.47101307,3240.9,3240.7,0.00113684]
[1641949682990,1.47101307,3240.9,3240.5,0.00227369]
[1641949683488,1.47101307,3240.9,3239.9,0.00568423]
[1641949683489,1.2182834,3240.2,3239.9,0.00568423]
[1641949683695,0.00796781,3240.1,3239.9,0.00568423]
[1641949684088,1.2182834,3240.2,3239.7,2.29158772]
[1641949684488,1.2182834,3240.2,3239.8,0.00625265]
[1641949684688,0.77164,3240.6,3239.9,0.771639]
[1641949684989,4.22371581,3241.1,3240.0,2.82597075]
[1641949685189,1.22331581,3241.1,3240.0,0.30511581]
[1641949685388,1.22331581,3241.1,3240.1,2.82540232]
[1641949685590,0.7716,3240.8,3240.4,0.7715648]
[1641949685835,0.7716,3240.8,3240.2,2.8248339]
[1641949686041,1.18729145,3240.7,3240.5,0.00227369]
[1641949686240,1.48432793,3240.6,3240.3,0.00341054]
[1641949686637,1.48432793,3240.6,3239.9,0.00568423]
[1641949686638,2.25600793,3240.6,3239.9,0.00568423]
[1641949686839,0.77169,3240.5,3239.9,0.00568423]
[1641949687740,0.77169,3240.5,3239.9,0.77735493]
[1641949687940,0.77169,3240.5,3239.9,0.00568423]
[1641949688140,0.77169,3240.5,3240.0,0.00511581]
[1641949688338,0.77169,3240.5,3239.9,0.00568423]
[1641949688539,0.77166,3240.4,3239.9,0.00568423]
[1641949688741,0.77166,3240.3,3239.9,0.00568423]
[1641949689612,0.77167,3240.4,3239.9,0.00568423]
[1641949690004,0.77167,3240.4,3239.8,0.00625265]
[1641949690508,1.54334,3240.2,3239.8,0.00625265]
[1641949690704,0.77182,3240.0,3239.8,0.00625265]
[1641949690907,0.77182,3240.0,3239.6,0.0073895]
[1641949691506,0.77179,3239.9,3239.6,0.0073895]
[1641949691906,0.77179,3239.9,3239.4,0.00852635]
[1641949692111,0.77179,3239.7,3239.2,0.0096632]
[1641949692312,0.77179,3239.7,3239.2,2.27900238]
[1641949692711,0.77179,3239.7,3239.3,0.00909477]
[1641949692912,0.77177,3239.7,3239.3,0.00909477]
[1641949693333,1.54357,3240.1,3239.2,2.27221583]
[1641949693534,1.54357,3240.1,3239.3,0.00909477]
[1641949693735,1.54357,3240.1,3239.4,2.63153463]
[1641949694038,1.54357,3240.1,3239.5,0.00795793]
[1641949694437,0.7717,3239.9,3239.5,0.00795793]
[1641949694839,1.54386,3239.8,3239.0,0.01080004]
[1641949695041,1.54389,3239.7,3239.0,0.01080004]
[1641949695239,2.54386,3239.8,3239.0,0.01080004]
[1641949695449,1.3441125,3239.1,3239.0,0.01080004]
[1641949695648,2.2433125,3239.1,3239.0,0.01080004]
[1641949696242,2.2433125,3239.1,3238.9,2.83222341]
[1641949696451,3.7873425,3239.1,3239.0,0.01080004]
[1641949696649,4.75995242,3239.1,3239.0,0.01080004]
[1641949696844,3.21525,3239.1,3238.6,0.01307374]
[1641949697111,0.77196,3239.0,3238.6,0.01307374]
[1641949697516,0.30332003,3239.5,3238.6,0.01307374]
[1641949697715,1.0,3239.4,3238.6,0.01307374]
[1641949697914,0.30332003,3239.5,3238.6,0.01307374]
[1641949698119,0.30332003,3239.5,3239.0,0.7718139]
[1641949698316,0.30332003,3239.5,3239.1,2.31184662]
[1641949698517,0.30332003,3239.5,3239.1,2.32207824]
[1641949698716,0.30332003,3239.5,3239.2,0.0096632]
[1641949700719,0.30332003,3239.5,3239.3,1.35354887]
[1641949700947,7.5435,3240.1,3239.4,5.63140363]
[1641949701146,2.31519,3240.6,3239.4,5.63140363]
[1641949701147,4.46273353,3240.8,3239.4,5.93992998]
[1641949701349,0.80603353,3240.8,3239.5,1.20295793]
[1641949701549,0.80603353,3240.8,3239.6,2.3918601]
[1641949701754,0.80603353,3240.8,3239.6,2.3992496]
[1641949701950,0.80603353,3240.8,3239.7,0.00682108]
[1641949702148,1.5435,3240.3,3239.7,0.00682108]
[1641949702350,1.18010728,3240.1,3239.7,0.00682108]
[1641949702748,2.18010728,3240.1,3239.6,0.0073895]
[1641949703149,1.4981081,3240.2,3239.6,0.0073895]
[1641949703349,3.1,3240.1,3239.6,0.0073895]
[1641949703549,0.77183,3240.0,3239.6,0.0073895]
[1641949704150,0.77183,3240.0,3239.6,2.26907384]
[1641949704353,3.87183,3240.1,3239.6,0.0073895]
[1641949704587,3.87183,3240.1,3239.7,0.00682108]
[1641949704788,3.87183,3240.1,3239.6,0.0073895]
[1641949705193,0.77176,3240.0,3239.6,0.0073895]
[1641949705594,1.54364,3239.9,3239.6,0.0073895]
[1641949706191,0.77182,3239.8,3239.6,0.0073895]
[1641949706395,1.54367,3239.8,3239.2,0.0096632]
[1641949706592,0.77187,3239.5,3239.2,0.0096632]
[1641949707193,0.77187,3239.5,3239.1,0.01023162]
[1641949707594,1.49376,3239.5,3239.1,0.01023162]
[1641949707995,2.49376,3239.5,3239.1,0.01023162]
[1641949712089,1.2926593,3239.4,3239.1,0.01023162]
[1641949712591,1.2645935,3239.4,3239.1,0.01023162]
[1641949712796,1.2435335,3239.4,3239.1,0.01023162]
[1641949712997,1.2435335,3239.4,3238.8,0.01193689]
[1641949713196,0.77194,3239.3,3238.8,0.01193689]
[1641949713694,0.76936,3239.3,3238.8,0.01193689]
[1641949714497,1.54132,3239.3,3238.8,0.01193689]
[1641949714900,1.53626,3239.3,3238.8,0.01027689]
[1641949715502,0.65754,3239.3,3238.8,0.01027689]
[1641949717954,0.77188,3239.5,3238.8,0.01027689]
[1641949718557,1.54397,3239.4,3238.9,2.6315974]
[1641949718755,2.55977,3239.4,3238.9,2.6315974]
[1641949718954,0.77205,3239.2,3239.0,0.00914004]
[1641949719603,0.77205,3239.2,3238.8,0.01027689]
[1641949720193,1.20879101,3238.9,3238.6,0.01141374]
[1641949720997,1.20879101,3238.9,3238.3,0.01311901]
[1641949721798,0.77204,3238.8,3238.3,0.01311901]
[1641949722300,1.30813402,3238.6,3238.3,0.01311901]
[1641949722498,2.15073402,3238.6,3238.3,0.01311901]
[1641949722702,2.15073402,3238.6,3238.4,2.63199367]
[1641949723098,2.15073402,3238.6,3238.5,0.01198216]
[1641949723543,0.8426,3238.6,3238.5,0.01198216]
[1641949723742,0.77204,3238.8,3238.5,0.01198216]
[1641949724141,0.77204,3238.8,3238.4,2.28954246]
[1641949724346,3.1,3238.9,3238.5,0.01198216]
[1641949725046,3.1,3238.9,3238.4,0.01255058]
[1641949725245,3.1,3238.9,3238.5,2.63199367]
[1641949725246,2.53152726,3238.8,3238.5,2.63199367]
[1641949725644,2.53152726,3238.8,3238.6,0.01141374]
[1641949725843,3.47532726,3238.8,3238.6,0.01141374]
[1641949726443,3.47532726,3238.8,3238.2,0.01368743]
[1641949726645,0.77213,3238.6,3238.2,0.01368743]
[1641949727292,1.54424,3238.8,3238.2,0.01368743]